[Event "25th Nepal Championship 2025"]
[Site "Hetauda"]
[Date "2025.01.26"]
[Round "1.1"]
[White "Bhandari, Kshitiz"]
[Black "Silwal, Purushottam"]
[Result "1-0"]
[Annotator "NA RC"]
[ECO "D87"]
[WhiteElo "2070"]
[BlackElo "2045"]
[PlyCount "34"]
[EventDate "2025.01.24"]
[EventType "tourn"]
[EventCountry "NEP"]
[SourceTitle "playchess.com"]
[Source "ChessBase"]
[SourceQuality "1"]
[TimeControl "5400+30"]

1. d4 {[%emt 0:00:02]} Nf6 {[%emt 0:00:35]} 2. c4 {[%emt 0:00:25]} g6 {[%emt 0:00:08]} 3. Nc3 {[%emt 0:00:15]} d5 {[%emt 0:00:05]} 4. cxd5 {[%emt 0:00:05]} Nxd5 {[%emt 0:00:06]} 5. e4 {[%emt 0:00:03]} Nxc3 {[%emt 0:00:09]} 6. bxc3 {[%emt 0:00:08]} Bg7 {[%emt 0:00:10]} 7. Bc4 {[%emt 0:06:30]} c5 {[%emt 0:01:00]} 8. Ne2 {[%emt 0:00:15]} O-O {[%emt 0:00:23]} 9. O-O {[%emt 0:00:12]} Nc6 {[%emt 0:00:11]} 10. Be3 {[%emt 0:01:00]} b6 {[%emt 0:00:25]} 11. dxc5 {[%emt 0:03:22]} Qc7 {[%emt 0:01:20]} 12. cxb6 {[%emt 0:07:53]} axb6 {[%emt 0:00:57]} 13. Rb1 {[%emt 0:08:57]} Ne5 {[%emt 0:02:30]} 14. Bd5 {[%emt 0:02:52]} Rb8 {[%emt 0:01:13]} 15. Qa4 {[%emt 0:26:01]} e6 {[%emt 0:05:35]} 16. Bb3 {[%emt 0:40:30]} Bd7 {[%emt 0:19:08]} 17. Qa6 {[%emt 0:00:30]} Bc8 {[%emt 0:34:23]} 1-0

[Event "25th Nepal Championship 2025"]
[Site "Hetauda"]
[Date "2025.01.26"]
[Round "1.2"]
[White "Subedi, Rajan"]
[Black "Maharjan, Suroj"]
[Result "1-0"]
[Annotator "TA"]
[WhiteElo "1982"]
[BlackElo "1952"]
[PlyCount "27"]
[EventDate "2025.01.24"]
[EventType "tourn"]
[EventCountry "NEP"]
[SourceTitle "playchess.com"]
[Source "ChessBase"]
[SourceQuality "1"]
[TimeControl "5400+30"]

{[%evp 0,5,27,-39,-28,-30,-30,-43]} 1. b4 {[%emt 1:31:00]} (1. d4 $11) 1... e5 {[%emt 0:01:14] A00: Irregular Openings.} 2. Bb2 {[%emt 0:00:30]} Bxb4 {[%emt 0:00:32]} 3. Bxe5 {[%emt 0:00:00][%mdl 32768] Loss on time!?  OK:         	White=1     	Black=1      Best:        	White=1     	---} Nf6 $146 4. e3 O-O 5. Nf3 d5 6. c4 c5 7. Nc3 Bxc3 8. Bxc3 Nc6 9. Bxf6 Qxf6 10. cxd5 Nb4 11. Rc1 b6 12. Bc4 Bb7 13. Qb3 Rad8 14. d4 {0-1 Firouzja,A (2785)-Caruana,F (2764) Norway Masters blitz 11th 2023 (8)} 1-0

[Event "25th Nepal Championship 2025"]
[Site "Hetauda"]
[Date "2025.01.26"]
[Round "1.3"]
[White "Rai, Dhiren"]
[Black "Maharjan, Prem Krishna"]
[Result "0-1"]
[Annotator "NA RC"]
[ECO "C50"]
[WhiteElo "1878"]
[BlackElo "1882"]
[PlyCount "58"]
[EventDate "2025.01.24"]
[EventType "tourn"]
[EventCountry "NEP"]
[SourceTitle "playchess.com"]
[Source "ChessBase"]
[SourceQuality "1"]
[TimeControl "5400+30"]

1. e4 {[%emt 0:00:23]} e5 2. Nf3 {[%emt 1:31:07]} Nc6 {[%emt 1:31:30]} 3. Bc4 {[%emt 0:00:00]} Nf6 {[%emt 0:00:00]} 4. d3 {[%emt 0:00:00]} Bc5 {[%emt 0:00:00]} 5. O-O {[%emt 0:00:00]} d6 {[%emt 0:00:00]} 6. a3 {[%emt 0:00:00]} Bg4 {[%emt 0:00:00]} 7. Be3 {[%emt 0:00:00]} Nd4 {[%emt 0:00:00]} 8. Nbd2 {[%emt 0:00:00]} O-O {[%emt 0:00:00]} 9. h3 {[%emt 0:00:00]} Bh5 {[%emt 0:00:00]} 10. g4 {[%emt 0:04:00]} Bg6 {[%emt 0:00:00]} 11. Bg5 {[%emt 0:00:00]} Ne6 {[%emt 0:00:00]} 12. Bh4 {[%emt 0:00:00]} Nf4 {[%emt 0:00:00]} 13. Kh2 {[%emt 0:00:00]} h5 {[%emt 0:05:30]} 14. Rg1 {[%emt 0:00:00]} hxg4 {[%emt 0:00:00]} 15. hxg4 {[%emt 0:00:00]} c6 {[%emt 0:00:00]} 16. Ba2 {[%emt 0:00:00]} Re8 {[%emt 0:00:00]} 17. Nc4 {[%emt 0:00:00]} Kf8 {[%emt 0:00:00]} 18. b4 {[%emt 0:00:00]} Bb6 {[%emt 0:00:00]} 19. Nxb6 {[%emt 0:00:00]} axb6 {[%emt 0:00:00]} 20. Bg5 {[%emt 0:00:00]} Rxa3 {[%emt 0:00:00]} 21. Bxf4 {[%emt 0:00:00]} exf4 {[%emt 0:00:00]} 22. Qc1 {[%emt 0:00:00]} Qa8 {[%emt 0:00:00]} 23. Nh4 {[%emt 0:00:00]} Rxa2 {[%emt 0:00:00]} 24. Rb1 {[%emt 0:00:00]} Qa4 {[%emt 0:00:00]} 25. Qxf4 {[%emt 0:00:00]} Qxc2 {[%emt 0:00:00]} 26. Nxg6+ {[%emt 0:00:00]} fxg6 {[%emt 0:00:00]} 27. Qxd6+ {[%emt 0:00:00]} Kg8 {[%emt 0:00:00]} 28. Rbf1 {[%emt 0:00:00]} Qe2 {[%emt 0:00:00]} 29. Qg3 {[%emt 0:00:00]} Rd2 {[%emt 0:00:00]} 0-1

[Event "25th Nepal Championship 2025"]
[Site "Hetauda"]
[Date "2025.01.26"]
[Round "2.1"]
[White "Silwal, Purushottam"]
[Black "Phuyal, Aashish"]
[Result "1/2-1/2"]
[Annotator "NA RC"]
[ECO "C29"]
[WhiteElo "2045"]
[BlackElo "1981"]
[PlyCount "67"]
[EventDate "2025.01.24"]
[EventType "tourn"]
[EventCountry "NEP"]
[SourceTitle "playchess.com"]
[Source "ChessBase"]
[SourceQuality "1"]
[TimeControl "5400+30"]

1. e4 {[%emt 0:00:01]} e5 {[%emt 0:00:09]} 2. Nc3 {[%emt 0:00:04]} Nf6 {[%emt 0:01:16]} 3. f4 d5 {[%emt 0:01:29]} 4. fxe5 {[%emt 0:00:12]} Nxe4 {[%emt 0:00:14]} 5. Qf3 {[%emt 0:00:06]} Nxc3 {[%emt 0:01:46]} 6. bxc3 {[%emt 0:00:38]} c5 {[%emt 0:13:14]} 7. Qg3 {[%emt 0:06:28]} g5 {[%emt 0:12:25]} 8. d4 {[%emt 0:05:51]} Be7 {[%emt 0:03:01]} 9. Bb5+ {[%emt 0:02:11]} Nc6 {[%emt 0:01:41]} 10. Ne2 {[%emt 0:01:35]} c4 {[%emt 0:08:16]} 11. O-O {[%emt 0:03:03]} Be6 {[%emt 0:01:42]} 12. a4 {[%emt 0:08:33]} h5 {[%emt 0:11:00]} 13. h4 {[%emt 0:26:14]} gxh4 {[%emt 0:17:48]} 14. Qg7 {[%emt 0:06:15]} Kd7 {[%emt 0:00:18]} 15. Nf4 {[%emt 0:13:10]} Qg8 {[%emt 0:05:56]} 16. Qxg8 {[%emt 0:04:10]} Raxg8 {[%emt 0:00:25]} 17. Kh2 {[%emt 0:03:59]} Rg4 {[%emt 0:01:16]} 18. Be3 {[%emt 0:01:15]} Rhg8 {[%emt 0:04:50]} 19. Rf2 {[%emt 0:01:29]} Bg5 {[%emt 0:03:06]} 20. Bd2 {[%emt 0:10:12]} Bxf4+ {[%emt 0:01:35]} 21. Bxf4 {[%emt 0:00:06]} Kc7 {[%emt 0:00:54]} 22. a5 {[%emt 0:01:28]} Ne7 {[%emt 0:01:43]} 23. a6 {[%emt 0:00:21]} b6 {[%emt 0:00:03]} 24. Raf1 {[%emt 0:00:30]} R4g7 {[%emt 0:06:35]} 25. Bh6 {[%emt 0:01:45]} Rh7 {[%emt 0:00:08]} 26. Bc1 {[%emt 0:00:22]} Rhg7 {[%emt 0:00:53]} 27. Bh6 {[%emt 0:01:34]} Rh7 {[%emt 0:00:04]} 28. Bc1 {[%emt 0:00:07]} Rg3 {[%emt 0:00:31]} 29. Ba3 {[%emt 0:00:54]} Nc8 {[%emt 0:00:10]} 30. Rf3 {[%emt 0:00:33]} Rg6 {[%emt 0:00:47]} 31. Bf8 {[%emt 0:00:38]} Rg8 {[%emt 0:00:55]} 32. Ba3 {[%emt 0:00:18]} Rg6 {[%emt 0:00:29]} 33. Bf8 {[%emt 0:00:57]} Rg8 {[%emt 0:00:41]} 34. Ba3 {[%emt 0:00:09]} 1/2-1/2

[Event "25th Nepal Championship 2025"]
[Site "Hetauda"]
[Date "2025.01.26"]
[Round "2.2"]
[White "Thapa, Binay"]
[Black "Rajbhandari, Rijendra"]
[Result "0-1"]
[Annotator "NA RC"]
[ECO "D02"]
[WhiteElo "1688"]
[BlackElo "2016"]
[PlyCount "100"]
[EventDate "2025.01.24"]
[EventType "tourn"]
[EventCountry "NEP"]
[SourceTitle "playchess.com"]
[Source "ChessBase"]
[SourceQuality "1"]
[TimeControl "5400+30"]

1. Nf3 {[%emt 1:31:00]} d5 2. d4 Nf6 3. Bf4 c5 4. c3 Nc6 {[%emt 1:32:30]} 5. e3 {[%emt 0:02:00]} Qb6 {[%emt 0:00:30]} 6. Qc2 {[%emt 0:00:30]} g6 {[%emt 0:00:30]} 7. Nbd2 {[%emt 0:00:30]} Bf5 {[%emt 0:00:30]} 8. Qb3 {[%emt 0:00:30]} c4 {[%emt 0:00:30]} 9. Qxb6 {[%emt 0:00:30]} axb6 {[%emt 0:00:30]} 10. Be2 {[%emt 0:00:30]} b5 {[%emt 0:00:30]} 11. Nh4 {[%emt 0:00:30]} Bd7 {[%emt 0:00:30]} 12. h3 {[%emt 0:00:30]} b4 {[%emt 0:00:30]} 13. Nhf3 {[%emt 0:00:30]} bxc3 {[%emt 0:00:30]} 14. bxc3 {[%emt 0:00:30]} Bf5 {[%emt 0:00:30]} 15. g4 {[%emt 0:00:30]} Bc8 {[%emt 0:00:30]} 16. O-O {[%emt 0:00:30]} Bg7 {[%emt 0:00:30]} 17. Ne5 {[%emt 0:00:30]} O-O {[%emt 0:00:30]} 18. Nxc6 {[%emt 0:00:30]} bxc6 {[%emt 0:00:30]} 19. a4 {[%emt 0:00:30]} h5 {[%emt 0:00:30]} 20. f3 {[%emt 0:00:30]} hxg4 {[%emt 0:00:30]} 21. hxg4 {[%emt 0:00:30]} Nd7 {[%emt 0:00:30]} 22. Rfb1 {[%emt 0:00:30]} Re8 {[%emt 0:00:30]} 23. Kf2 {[%emt 0:00:30]} e5 {[%emt 0:00:30]} 24. Bg5 {[%emt 0:00:30]} exd4 {[%emt 0:00:30]} 25. exd4 {[%emt 0:00:30]} Nf8 {[%emt 0:00:30]} 26. Nf1 {[%emt 0:00:30]} Ne6 {[%emt 0:00:30]} 27. Be3 {[%emt 0:00:30]} c5 {[%emt 0:00:30]} 28. Rd1 {[%emt 0:00:30]} cxd4 {[%emt 0:00:30]} 29. cxd4 {[%emt 0:00:30]} Bd7 {[%emt 0:00:30]} 30. a5 {[%emt 0:00:30]} Reb8 {[%emt 0:00:30]} 31. Ra2 {[%emt 0:00:30]} Rb5 {[%emt 0:00:30]} 32. a6 {[%emt 0:00:30]} Rb6 {[%emt 0:00:30]} 33. Ra5 {[%emt 0:00:30]} Bc6 {[%emt 0:00:30]} 34. Rda1 {[%emt 0:00:30]} Nxd4 {[%emt 0:00:30]} 35. Rd1 {[%emt 0:00:30]} Rb5 {[%emt 0:00:30]} 36. Ra2 {[%emt 0:00:30]} Ne6 {[%emt 0:00:30]} 37. f4 {[%emt 0:00:30]} d4 {[%emt 0:00:30]} 38. Bc1 {[%emt 0:00:30]} d3 {[%emt 0:00:30]} 39. Bf3 {[%emt 0:00:30]} Bd4+ {[%emt 0:00:30]} 40. Kg3 {[%emt 0:00:30]} Bxf3 {[%emt 0:00:30]} 41. Kxf3 {[%emt 0:00:30]} Nc5 {[%emt 0:00:30]} 42. Ne3 {[%emt 0:00:30]} c3 {[%emt 0:00:30]} 43. Nd5 {[%emt 0:00:30]} Rb1 {[%emt 0:00:30]} 44. a7 {[%emt 0:00:30]} Nb3 45. Ne7+ {[%emt 0:00:30]} Kf8 {[%emt 0:01:00]} 46. Ba3 {[%emt 0:00:30]} Rxd1 {[%emt 0:00:30]} 47. Nc6+ Kg8 {[%emt 0:00:30]} 48. Nxd4 {[%emt 0:01:00]} Nxd4+ {[%emt 0:00:30]} 49. Ke4 {[%emt 0:00:30]} Nb5 {[%emt 0:00:30]} 50. Be7 {[%emt 0:00:30]} Rxa7 {[%emt 0:00:30]} 0-1

[Event "25th Nepal Championship 2025"]
[Site "Hetauda"]
[Date "2025.01.26"]
[Round "2.3"]
[White "Dahal, Sushrut"]
[Black "Tandukar, Nabin"]
[Result "1/2-1/2"]
[Annotator "NA RC"]
[ECO "A15"]
[WhiteElo "2021"]
[BlackElo "1920"]
[PlyCount "125"]
[EventDate "2025.01.24"]
[EventType "tourn"]
[EventCountry "NEP"]
[SourceTitle "playchess.com"]
[Source "ChessBase"]
[SourceQuality "1"]
[TimeControl "5400+30"]

1. c4 {[%emt 1:31:00]} Nf6 2. e3 g6 3. Nf3 Bg7 4. Be2 {[%emt 0:01:30]} c5 {[%emt 1:32:30]} 5. O-O {[%emt 0:00:30]} O-O {[%emt 0:00:30]} 6. a3 {[%emt 0:00:30]} Nc6 {[%emt 0:00:30]} 7. d3 {[%emt 0:00:30]} Rb8 {[%emt 0:00:30]} 8. Qc2 {[%emt 0:00:30]} d6 {[%emt 0:00:30]} 9. Rd1 {[%emt 0:00:30]} e5 {[%emt 0:00:30]} 10. Nc3 {[%emt 0:00:30]} Re8 {[%emt 0:00:30]} 11. Rb1 {[%emt 0:00:30]} d5 {[%emt 0:00:30]} 12. cxd5 {[%emt 0:00:30]} Nxd5 {[%emt 0:00:30]} 13. Ne4 {[%emt 0:00:30]} b6 {[%emt 0:00:30]} 14. Bd2 {[%emt 0:00:30]} f5 {[%emt 0:00:30]} 15. Nc3 {[%emt 0:00:30]} Be6 {[%emt 0:00:30]} 16. Nxd5 {[%emt 0:00:30]} Qxd5 {[%emt 0:00:30]} 17. Bc3 {[%emt 0:00:30]} Rbc8 {[%emt 0:00:30]} 18. Qd2 {[%emt 0:00:30]} h6 {[%emt 0:00:30]} 19. Qe1 {[%emt 0:00:30]} Qd7 {[%emt 0:00:30]} 20. b4 {[%emt 0:00:30]} cxb4 {[%emt 0:00:30]} 21. axb4 {[%emt 0:00:30]} Bf7 {[%emt 0:00:30]} 22. b5 {[%emt 0:00:30]} Nd8 {[%emt 0:00:30]} 23. d4 {[%emt 0:00:30]} e4 {[%emt 0:00:30]} 24. Ne5 {[%emt 0:00:30]} Bxe5 {[%emt 0:00:30]} 25. dxe5 {[%emt 0:00:30]} Qc7 {[%emt 0:00:30]} 26. Bb2 {[%emt 0:00:30]} Nb7 {[%emt 0:00:30]} 27. Rbc1 {[%emt 0:00:30]} Qe7 {[%emt 0:00:30]} 28. e6 {[%emt 0:00:30]} Qxe6 {[%emt 0:00:30]} 29. Qd2 {[%emt 0:00:30]} Red8 {[%emt 0:00:30]} 30. Rxc8 {[%emt 0:00:30]} Qxc8 {[%emt 0:00:30]} 31. Bd4 {[%emt 0:00:30]} Nc5 {[%emt 0:00:30]} 32. Rc1 {[%emt 0:00:30]} Qd7 {[%emt 0:00:30]} 33. Qb4 {[%emt 0:00:30]} Nb3 {[%emt 0:00:30]} 34. Rd1 {[%emt 0:00:30]} Qc7 {[%emt 0:00:30]} 35. Bb2 {[%emt 0:00:30]} Rxd1+ {[%emt 0:00:30]} 36. Bxd1 {[%emt 0:00:30]} Qc5 {[%emt 0:00:30]} 37. Qa4 {[%emt 0:00:30]} Na5 {[%emt 0:00:30]} 38. h3 {[%emt 0:00:30]} Bc4 {[%emt 0:00:30]} 39. Qa1 {[%emt 0:00:30]} Bxb5 {[%emt 0:00:30]} 40. Bh8 {[%emt 0:00:30]} Qe7 {[%emt 0:00:30]} 41. Bf6 {[%emt 0:00:30]} Qd7 {[%emt 0:00:30]} 42. Bc2 {[%emt 0:00:30]} Bc4 {[%emt 0:00:30]} 43. Qc3 {[%emt 0:00:30]} Bd3 {[%emt 0:00:30]} 44. Bd1 {[%emt 0:00:30]} Nc4 {[%emt 0:00:30]} 45. Bb3 {[%emt 0:00:30]} b5 {[%emt 0:00:30]} 46. Bxc4+ {[%emt 0:00:30]} Bxc4 {[%emt 0:00:30]} 47. Qe5 {[%emt 0:00:30]} g5 {[%emt 0:00:30]} 48. Qb8+ {[%emt 0:00:30]} Kf7 {[%emt 0:00:30]} 49. Qh8 {[%emt 0:00:30]} Kg6 {[%emt 0:00:30]} 50. Bc3 {[%emt 0:00:30]} Qe7 {[%emt 0:00:30]} 51. Qd4 {[%emt 0:00:30]} a6 {[%emt 0:00:30]} 52. Qb6+ {[%emt 0:00:30]} Qe6 {[%emt 0:00:30]} 53. Qc7 {[%emt 0:00:30]} Qf7 {[%emt 0:00:30]} 54. Qd6+ {[%emt 0:00:30]} Kh7 {[%emt 0:00:30]} 55. Qe5 {[%emt 0:00:30]} Kg6 {[%emt 0:00:30]} 56. Qh8 {[%emt 0:00:30]} f4 {[%emt 0:00:30]} 57. Qd4 {[%emt 0:00:30]} Qe7 {[%emt 0:00:30]} 58. Qb6+ {[%emt 0:00:30]} Qe6 {[%emt 0:00:30]} 59. Qd4 {[%emt 0:00:30]} Kf7 {[%emt 0:00:30]} 60. Qg7+ {[%emt 0:00:30]} Ke8 {[%emt 0:00:30]} 61. Bb4 {[%emt 0:00:30]} fxe3 {[%emt 0:00:30]} 62. fxe3 {[%emt 0:00:30]} Bd3 {[%emt 0:00:30]} 63. Kh1 {[%emt 0:00:30]} 1/2-1/2

[Event "25th Nepal Championship 2025"]
[Site "Hetauda"]
[Date "2025.01.26"]
[Round "2.4"]
[White "Maharjan, Prem Krishna"]
[Black "Jaiswal, Rupesh"]
[Result "0-1"]
[Annotator "NA RC"]
[ECO "B95"]
[WhiteElo "1882"]
[BlackElo "2093"]
[PlyCount "64"]
[EventDate "2025.01.24"]
[EventType "tourn"]
[EventCountry "NEP"]
[SourceTitle "playchess.com"]
[Source "ChessBase"]
[SourceQuality "1"]
[TimeControl "5400+30"]

1. e4 {[%emt 1:31:00]} c5 2. Nf3 d6 3. d4 cxd4 4. Nxd4 Nf6 5. Nc3 a6 6. Bc4 e6 7. Bg5 Be7 {[%emt 1:34:00]} 8. Qd2 {[%emt 0:03:30]} b5 {[%emt 0:00:30]} 9. Bd3 {[%emt 0:00:30]} Qc7 {[%emt 0:00:30]} 10. f4 {[%emt 0:00:30]} Bb7 {[%emt 0:00:30]} 11. Bxf6 {[%emt 0:00:30]} Bxf6 {[%emt 0:00:30]} 12. Bxb5+ {[%emt 0:00:30]} axb5 {[%emt 0:00:30]} 13. Ndxb5 {[%emt 0:00:30]} Qb6 {[%emt 0:00:30]} 14. Nxd6+ {[%emt 0:00:30]} Kf8 {[%emt 0:00:30]} 15. e5 {[%emt 0:00:30]} Bh4+ {[%emt 0:00:30]} 16. Kd1 {[%emt 0:00:30]} Be7 {[%emt 0:00:30]} 17. Rf1 {[%emt 0:00:30]} Nd7 {[%emt 0:00:30]} 18. Kc1 {[%emt 0:00:30]} Nc5 {[%emt 0:00:30]} 19. Nxb7 {[%emt 0:00:30]} Qxb7 {[%emt 0:00:30]} 20. f5 {[%emt 0:00:30]} exf5 {[%emt 0:00:30]} 21. Rxf5 {[%emt 0:00:30]} Ne4 {[%emt 0:00:30]} 22. Nxe4 {[%emt 0:00:30]} Qxe4 {[%emt 0:00:30]} 23. Qf2 {[%emt 0:00:30]} Rd8 {[%emt 0:00:30]} 24. a3 {[%emt 0:00:30]} Qd5 {[%emt 0:00:30]} 25. Kb1 {[%emt 0:00:30]} g6 {[%emt 0:00:30]} 26. Rf3 {[%emt 0:00:30]} Kg7 {[%emt 0:00:30]} 27. Re3 {[%emt 0:00:30]} Rhe8 {[%emt 0:00:30]} 28. Qe2 {[%emt 0:00:30]} Rc8 {[%emt 0:00:30]} 29. Re4 {[%emt 0:00:30]} Red8 {[%emt 0:00:30]} 30. b4 {[%emt 0:00:30]} Rc3 {[%emt 0:00:30]} 31. Kb2 {[%emt 0:00:30]} Rdc8 {[%emt 0:00:30]} 32. Rc1 {[%emt 0:00:30]} Qa8 {[%emt 0:00:30]} 0-1

[Event "25th Nepal Championship 2025"]
[Site "Hetauda"]
[Date "2025.01.26"]
[Round "2.5"]
[White "Maharjan, Suroj"]
[Black "Rai, Dhiren"]
[Result "1-0"]
[Annotator "NA RC"]
[ECO "C62"]
[WhiteElo "1952"]
[BlackElo "1878"]
[PlyCount "76"]
[EventDate "2025.01.24"]
[EventType "tourn"]
[EventCountry "NEP"]
[SourceTitle "playchess.com"]
[Source "ChessBase"]
[SourceQuality "1"]
[TimeControl "5400+30"]

1. e4 {[%emt 1:31:00]} e5 2. Nf3 Nc6 3. Bb5 {[%emt 0:01:00]} d6 {[%emt 1:32:00]} 4. c3 {[%emt 0:00:30]} Bd7 {[%emt 0:00:30]} 5. d4 {[%emt 0:00:30]} exd4 {[%emt 0:00:30]} 6. cxd4 {[%emt 0:00:30]} Nge7 {[%emt 0:00:30]} 7. Bc4 {[%emt 0:00:30]} h6 {[%emt 0:00:30]} 8. Qb3 {[%emt 0:00:30]} d5 {[%emt 0:00:30]} 9. Bxd5 {[%emt 0:00:30]} Nxd5 {[%emt 0:00:30]} 10. Qxd5 {[%emt 0:00:30]} Bg4 {[%emt 0:00:30]} 11. Qxd8+ {[%emt 0:00:30]} Rxd8 {[%emt 0:00:30]} 12. d5 {[%emt 0:00:30]} Bxf3 {[%emt 0:00:30]} 13. gxf3 {[%emt 0:00:30]} Nd4 {[%emt 0:00:30]} 14. Kd1 {[%emt 0:00:30]} Nxf3 {[%emt 0:00:30]} 15. Be3 {[%emt 0:00:30]} f5 {[%emt 0:00:30]} 16. Ke2 {[%emt 0:00:30]} fxe4 {[%emt 0:00:30]} 17. Nc3 {[%emt 0:00:30]} Bb4 {[%emt 0:00:30]} 18. Nxe4 {[%emt 0:00:30]} O-O {[%emt 0:00:30]} 19. Rac1 {[%emt 0:00:30]} Rf7 {[%emt 0:00:30]} 20. Rc4 {[%emt 0:00:30]} Ba5 {[%emt 0:00:30]} 21. Rd1 {[%emt 0:00:30]} Nxh2 {[%emt 0:00:30]} 22. Bxa7 {[%emt 0:00:30]} b5 {[%emt 0:00:30]} 23. Rc6 {[%emt 0:00:30]} Re8 {[%emt 0:00:30]} 24. Re6 {[%emt 0:00:30]} Rd8 {[%emt 0:00:30]} 25. Bc5 {[%emt 0:00:30]} b4 {[%emt 0:00:30]} 26. Ra6 {[%emt 0:00:30]} Re8 {[%emt 0:00:30]} 27. Re6 {[%emt 0:00:30]} Ra8 {[%emt 0:00:30]} 28. Rd3 {[%emt 0:00:30]} Ng4 {[%emt 0:00:30]} 29. Rg3 {[%emt 0:00:30]} Rf4 {[%emt 0:00:30]} 30. f3 {[%emt 0:00:30]} Rxe4+ {[%emt 0:00:30]} 31. fxe4 {[%emt 0:00:30]} h5 {[%emt 0:00:30]} 32. Rh3 {[%emt 0:00:30]} b3 {[%emt 0:00:30]} 33. axb3 {[%emt 0:00:30]} Rb8 {[%emt 0:00:30]} 34. Re7 {[%emt 0:00:30]} Nf6 {[%emt 0:00:30]} 35. Rg3 {[%emt 0:00:30]} Ng4 {[%emt 0:00:30]} 36. Bd4 {[%emt 0:00:30]} Kf8 {[%emt 0:00:30]} 37. Rxg7 {[%emt 0:00:30]} Rxb3 {[%emt 0:00:30]} 38. Rxb3 {[%emt 0:00:30]} Ke8 {[%emt 0:00:30]} 1-0

[Event "25th Nepal Championship 2025"]
[Site "Hetauda"]
[Date "2025.01.26"]
[Round "2.6"]
[White "Bhandari, Kshitiz"]
[Black "Subedi, Rajan"]
[Result "1/2-1/2"]
[Annotator "NA RC"]
[ECO "D53"]
[WhiteElo "2070"]
[BlackElo "1982"]
[PlyCount "163"]
[EventDate "2025.01.24"]
[EventType "tourn"]
[EventCountry "NEP"]
[SourceTitle "playchess.com"]
[Source "ChessBase"]
[SourceQuality "1"]
[TimeControl "5400+30"]

1. d4 {[%emt 1:31:00]} d5 2. c4 e6 3. Nf3 Nf6 4. Nc3 a6 5. cxd5 {[%emt 0:02:00]} exd5 {[%emt 1:33:00]} 6. Bg5 {[%emt 0:00:30]} Be7 {[%emt 0:00:30]} 7. e3 {[%emt 0:00:30]} Nbd7 {[%emt 0:00:30]} 8. Be2 {[%emt 0:00:30]} O-O {[%emt 0:00:30]} 9. O-O {[%emt 0:00:30]} b5 {[%emt 0:00:30]} 10. Ne5 {[%emt 0:00:30]} Bb7 {[%emt 0:00:30]} 11. Nxd7 {[%emt 0:00:30]} Qxd7 {[%emt 0:00:30]} 12. a4 {[%emt 0:00:30]} b4 {[%emt 0:00:30]} 13. Na2 {[%emt 0:00:30]} a5 {[%emt 0:00:30]} 14. Nc1 {[%emt 0:00:30]} Ne4 {[%emt 0:00:30]} 15. Bxe7 {[%emt 0:00:30]} Qxe7 {[%emt 0:00:30]} 16. Nb3 {[%emt 0:00:30]} c5 {[%emt 0:00:30]} 17. dxc5 {[%emt 0:00:30]} Nxc5 {[%emt 0:00:30]} 18. Nd4 {[%emt 0:00:30]} Ne6 {[%emt 0:00:30]} 19. Nb3 {[%emt 0:00:30]} Rfd8 {[%emt 0:00:30]} 20. Qd2 {[%emt 0:00:30]} d4 {[%emt 0:00:30]} 21. Bc4 {[%emt 0:00:30]} dxe3 {[%emt 0:00:30]} 22. Qxe3 {[%emt 0:00:30]} Qf6 {[%emt 0:00:30]} 23. Bxe6 {[%emt 0:00:30]} fxe6 {[%emt 0:00:30]} 24. Nc5 {[%emt 0:00:30]} Bd5 {[%emt 0:00:30]} 25. b3 {[%emt 0:00:30]} Qg6 {[%emt 0:00:30]} 26. f3 {[%emt 0:00:30]} Rac8 {[%emt 0:00:30]} 27. Rac1 {[%emt 0:00:30]} Rc6 {[%emt 0:00:30]} 28. Nd3 {[%emt 0:00:30]} Rc3 {[%emt 0:00:30]} 29. Rxc3 {[%emt 0:00:30]} bxc3 {[%emt 0:00:30]} 30. Ne5 {[%emt 0:00:30]} Qc2 {[%emt 0:00:30]} 31. Rc1 {[%emt 0:00:30]} Qxb3 {[%emt 0:00:30]} 32. Rxc3 {[%emt 0:00:30]} Qxa4 {[%emt 0:00:30]} 33. Rc7 {[%emt 0:00:30]} h6 {[%emt 0:00:30]} 34. h3 {[%emt 0:00:30]} Qb3 {[%emt 0:00:30]} 35. Qa7 {[%emt 0:00:30]} Qb1+ {[%emt 0:00:30]} 36. Kh2 {[%emt 0:00:30]} Qh7 {[%emt 0:00:30]} 37. Qxa5 {[%emt 0:00:30]} Qf5 {[%emt 0:00:30]} 38. Rxg7+ {[%emt 0:00:30]} Kxg7 {[%emt 0:00:30]} 39. Qc7+ {[%emt 0:00:30]} Kg8 {[%emt 0:00:30]} 40. Qxd8+ {[%emt 0:00:30]} Kg7 {[%emt 0:00:30]} 41. Qc7+ {[%emt 0:00:30]} Kf6 {[%emt 0:00:30]} 42. Ng4+ {[%emt 0:00:30]} Kg6 {[%emt 0:00:30]} 43. Qb8 {[%emt 0:00:30]} Kg7 {[%emt 0:00:30]} 44. Qg3 {[%emt 0:00:30]} Kh7 {[%emt 0:00:30]} 45. Qe5 {[%emt 0:00:30]} Kg6 {[%emt 0:00:30]} 46. Qe3 {[%emt 0:00:30]} h5 {[%emt 0:00:30]} 47. Ne5+ {[%emt 0:00:30]} Kf6 {[%emt 0:00:30]} 48. Nd3 {[%emt 0:00:30]} Qg5 {[%emt 0:00:30]} 49. Qd4+ {[%emt 0:00:30]} Kf7 {[%emt 0:00:30]} 50. h4 {[%emt 0:00:30]} Qf6 {[%emt 0:00:30]} 51. Qxf6+ {[%emt 0:00:30]} Kxf6 {[%emt 0:00:30]} 52. Nf4 {[%emt 0:00:30]} Bc6 {[%emt 0:00:30]} 53. Nxh5+ {[%emt 0:00:30]} Kf5 {[%emt 0:00:30]} 54. Kg3 {[%emt 0:00:30]} e5 {[%emt 0:00:30]} 55. Kf2 {[%emt 0:00:30]} Bd5 {[%emt 0:00:30]} 56. Ke3 {[%emt 0:00:30]} Bc6 {[%emt 0:00:30]} 57. Ng3+ {[%emt 0:00:30]} Kf6 {[%emt 0:00:30]} 58. Ne4+ {[%emt 0:00:30]} Kg6 {[%emt 0:00:30]} 59. g4 {[%emt 0:00:30]} Bb5 {[%emt 0:00:30]} 60. Kf2 {[%emt 0:00:30]} Bc6 {[%emt 0:00:30]} 61. Kg3 {[%emt 0:00:30]} Bd7 {[%emt 0:00:30]} 62. h5+ {[%emt 0:00:30]} Kh6 {[%emt 0:00:30]} 63. Kh4 {[%emt 0:00:30]} Be6 {[%emt 0:00:30]} 64. Nc5 {[%emt 0:00:30]} Bd5 {[%emt 0:00:30]} 65. g5+ {[%emt 0:00:30]} Kg7 {[%emt 0:00:30]} 66. Kg4 {[%emt 0:00:30]} Bc6 {[%emt 0:00:30]} 67. Ne6+ {[%emt 0:00:30]} Kh7 {[%emt 0:00:30]} 68. Nc5 {[%emt 0:00:30]} Kg7 {[%emt 0:00:30]} 69. Ne4 {[%emt 0:00:30]} Bd7+ {[%emt 0:00:30]} 70. Kh4 {[%emt 0:00:30]} Bc6 {[%emt 0:00:30]} 71. Kg4 {[%emt 0:00:30]} Bd7+ {[%emt 0:00:30]} 72. Kg3 {[%emt 0:00:30]} Bc6 {[%emt 0:00:30]} 73. Kf2 {[%emt 0:00:30]} Be8 {[%emt 0:00:30]} 74. Nf6 {[%emt 0:00:30]} Bc6 {[%emt 0:00:30]} 75. Ke3 {[%emt 0:00:30]} Kf7 {[%emt 0:00:30]} 76. Kf2 {[%emt 0:00:30]} Kg7 {[%emt 0:00:30]} 77. Ng4 {[%emt 0:00:30]} e4 {[%emt 0:00:30]} 78. f4 {[%emt 0:00:30]} Ba4 {[%emt 0:00:30]} 79. f5 {[%emt 0:00:30]} Bd7 {[%emt 0:00:30]} 80. f6+ {[%emt 0:00:30]} Kh7 {[%emt 0:00:30]} 81. g6+ {[%emt 0:00:30]} Kg8 {[%emt 0:00:30]} 82. Nh6+ {[%emt 0:00:30]} 1/2-1/2